[Event "Championnat de France Universitaire 2022"]
[Site "Limoges, France"]
[Date "2022.02.05"]
[Round "3.3"]
[White "Lafortune, Emerick"]
[Black "Afraoui, Anaelle"]
[Result "0-1"]
[TimeControl "15'+5''"]
[WhiteElo "2270"]
[BlackElo "2124"]

1. Nf3 {[%clk 00:15:07]} {[%emt 00:00:01]} Nf6 {[%clk 00:15:09]} 2. c4 {[%clk
00:15:08]} {[%emt 00:00:04]} g6 {[%clk 00:15:12]} {[%emt 00:00:03]} 3. g3
{[%clk 00:15:07]} {[%emt 00:00:06]} Bg7 {[%clk 00:15:15]} {[%emt 00:00:03]} 4.
Bg2 {[%clk 00:15:11]} O-O {[%clk 00:15:17]} {[%emt 00:00:03]} 5. O-O {[%clk
00:15:13]} {[%emt 00:00:03]} d6 {[%clk 00:15:19]} {[%emt 00:00:03]} 6. d4
{[%clk 00:15:13]} {[%emt 00:00:05]} Nbd7 {[%clk 00:15:12]} {[%emt 00:00:11]} 7.
d5 {[%clk 00:15:00]} {[%emt 00:00:17]} a5 {[%clk 00:15:02]} {[%emt 00:00:16]} 8.
Nc3 {[%clk 00:14:57]} {[%emt 00:00:09]} Nc5 {[%clk 00:15:05]} {[%emt 00:00:02]}
9. Nd4 {[%clk 00:13:42]} {[%emt 00:01:19]} e5 {[%clk 00:13:26]} {[%emt
00:01:43]} 10. dxe6 {[%clk 00:13:43]} {[%emt 00:00:04]} fxe6 {[%clk 00:13:28]}
{[%emt 00:00:03]} 11. b3 {[%clk 00:13:05]} {[%emt 00:00:43]} e5 {[%clk
00:12:18]} {[%emt 00:01:16]} 12. Nc2 {[%clk 00:13:05]} {[%emt 00:00:05]} Be6
{[%clk 00:11:36]} {[%emt 00:00:46]} 13. Ne3 {[%clk 00:12:43]} {[%emt 00:00:27]}
Qd7 {[%clk 00:10:48]} {[%emt 00:00:53]} 14. Ned5 {[%clk 00:11:40]} {[%emt
00:01:08]} Rf7 {[%clk 00:10:40]} {[%emt 00:00:14]} 15. Nxf6+ {[%clk 00:09:20]}
{[%emt 00:02:24]} Bxf6 {[%clk 00:10:35]} {[%emt 00:00:09]} 16. Be3 {[%clk
00:08:58]} {[%emt 00:00:27]} c6 {[%clk 00:06:03]} {[%emt 00:04:37]} 17. Bxc5
{[%clk 00:05:38]} {[%emt 00:03:25]} dxc5 {[%clk 00:06:07]} {[%emt 00:00:01]} 18.
Qxd7 {[%clk 00:05:40]} {[%emt 00:00:02]} Rxd7 {[%clk 00:04:23]} {[%emt
00:01:49]} 19. Na4 {[%clk 00:05:36]} {[%emt 00:00:09]} Rd2 {[%clk 00:03:55]}
{[%emt 00:00:34]} 20. Nxc5 {[%clk 00:05:30]} {[%emt 00:00:11]} Bf5 {[%clk
00:02:38]} {[%emt 00:01:22]} 21. Nxb7 {[%clk 00:02:24]} {[%emt 00:03:12]} e4
{[%clk 00:01:50]} {[%emt 00:00:53]} 22. Rad1 {[%clk 00:02:24]} {[%emt
00:00:04]} Rxe2 {[%clk 00:01:35]} {[%emt 00:00:21]} 23. f3 {[%clk 00:01:25]}
{[%emt 00:01:04]} e3 {[%clk 00:01:20]} {[%emt 00:00:20]} 24. f4 {[%clk
00:01:12]} {[%emt 00:00:18]} Rxg2+ {[%clk 00:01:22]} {[%emt 00:00:04]} 25. Kxg2
{[%clk 00:01:13]} {[%emt 00:00:03]} e2 {[%clk 00:01:26]} 26. Rd6 {[%clk
00:00:53]} {[%emt 00:00:26]} Bh3+ {[%clk 00:01:27]} {[%emt 00:00:04]} 27. Kxh3
{[%clk 00:00:52]} {[%emt 00:00:06]} exf1=Q+ {[%clk 00:01:28]} {[%emt 00:00:03]}
28. Kg4 {[%clk 00:00:55]} {[%emt 00:00:02]} h5# {[%clk 00:01:29]} {[%emt
00:00:04]} 0-1

[Event "Championnat de France Universitaire 2022"]
[Site "Limoges, France"]
[Date "2022.02.05"]
[Round "3.5"]
[White "Profili, Emilio"]
[Black "Blanchet, Mathieu"]
[Result "1-0"]
[TimeControl "15'+5''"]
[WhiteElo "2097"]
[BlackElo "1977"]

1. e4 {[%clk 00:15:08]} {[%emt 00:00:01]} d6 {[%clk 00:15:09]} {[%emt
00:00:01]} 2. d4 {[%clk 00:15:11]} {[%emt 00:00:03]} Nf6 {[%clk 00:15:13]} 3.
Nc3 {[%clk 00:15:14]} {[%emt 00:00:01]} e5 {[%clk 00:15:17]} {[%emt 00:00:01]}
4. Nge2 {[%clk 00:15:12]} {[%emt 00:00:07]} Be7 {[%clk 00:15:06]} {[%emt
00:00:16]} 5. f3 {[%clk 00:15:07]} {[%emt 00:00:10]} O-O {[%clk 00:15:09]}
{[%emt 00:00:03]} 6. Be3 {[%clk 00:15:09]} {[%emt 00:00:02]} c6 {[%clk
00:15:10]} {[%emt 00:00:04]} 7. a4 {[%clk 00:15:00]} {[%emt 00:00:14]} b6
{[%clk 00:13:34]} {[%emt 00:01:42]} 8. Ng3 {[%clk 00:13:14]} {[%emt 00:01:51]}
Qc7 {[%clk 00:11:57]} {[%emt 00:01:43]} 9. Bc4 {[%clk 00:10:05]} {[%emt
00:03:13]} Re8 {[%clk 00:09:59]} {[%emt 00:02:03]} 10. O-O {[%clk 00:09:21]}
{[%emt 00:00:48]} Bf8 {[%clk 00:08:37]} {[%emt 00:01:27]} 11. Kh1 {[%clk
00:08:42]} {[%emt 00:00:44]} a6 {[%clk 00:06:49]} {[%emt 00:01:54]} 12. Qd2
{[%clk 00:07:22]} {[%emt 00:01:25]} Be6 {[%clk 00:05:28]} {[%emt 00:01:27]} 13.
d5 {[%clk 00:06:05]} {[%emt 00:01:22]} cxd5 {[%clk 00:05:07]} {[%emt 00:00:26]}
14. Bxd5 {[%clk 00:06:08]} {[%emt 00:00:01]} Nxd5 {[%clk 00:04:38]} {[%emt
00:00:34]} 15. exd5 {[%clk 00:04:09]} {[%emt 00:02:04]} Bc8 {[%clk 00:04:34]}
{[%emt 00:00:10]} 16. f4 {[%clk 00:04:06]} {[%emt 00:00:08]} Nd7 {[%clk
00:04:02]} {[%emt 00:00:38]} 17. Qf2 {[%clk 00:03:52]} {[%emt 00:00:19]} exf4
{[%clk 00:03:37]} {[%emt 00:00:31]} 18. Bxf4 {[%clk 00:03:42]} {[%emt
00:00:15]} Nf6 {[%clk 00:03:27]} {[%emt 00:00:14]} 19. Bg5 {[%clk 00:03:26]}
{[%emt 00:00:20]} Ng4 {[%clk 00:02:38]} {[%emt 00:00:54]} 20. Qd2 {[%clk
00:03:17]} {[%emt 00:00:14]} h6 {[%clk 00:02:12]} {[%emt 00:00:31]} 21. Bf4
{[%clk 00:03:09]} {[%emt 00:00:13]} Ne5 {[%clk 00:01:56]} {[%emt 00:00:22]} 22.
Bxe5 {[%clk 00:02:16]} {[%emt 00:00:57]} Rxe5 {[%clk 00:02:00]} {[%emt
00:00:02]} 23. Rf4 {[%clk 00:02:20]} {[%emt 00:00:02]} Bd7 {[%clk 00:01:41]}
{[%emt 00:00:24]} 24. Raf1 {[%clk 00:02:21]} {[%emt 00:00:02]} f6 {[%clk
00:01:44]} {[%emt 00:00:03]} 25. Nge4 {[%clk 00:02:09]} {[%emt 00:00:16]} Rae8
{[%clk 00:01:27]} {[%emt 00:00:22]} 26. Qf2 {[%clk 00:02:07]} {[%emt 00:00:07]}
f5 {[%clk 00:01:15]} {[%emt 00:00:18]} 27. Ng3 {[%clk 00:01:43]} {[%emt
00:00:28]} g5 {[%clk 00:01:13]} {[%emt 00:00:07]} 28. Rb4 {[%clk 00:01:19]}
{[%emt 00:00:29]} Qc5 {[%clk 00:00:43]} {[%emt 00:00:36]} 29. Rxb6 {[%clk
00:00:59]} {[%emt 00:00:24]} Qxf2 {[%clk 00:00:37]} {[%emt 00:00:11]} 30. Rxf2
{[%clk 00:01:03]} {[%emt 00:00:01]} Re1+ {[%clk 00:00:32]} {[%emt 00:00:10]} 31.
Nf1 {[%clk 00:01:07]} Bg7 {[%clk 00:00:26]} {[%emt 00:00:11]} 32. Rb4 {[%clk
00:01:01]} {[%emt 00:00:12]} f4 {[%clk 00:00:22]} {[%emt 00:00:08]} 33. h3
{[%clk 00:00:48]} {[%emt 00:00:17]} a5 {[%clk 00:00:27]} {[%emt 00:00:01]} 34.
Rc4 {[%clk 00:00:51]} {[%emt 00:00:01]} Bf5 {[%clk 00:00:21]} {[%emt 00:00:11]}
35. Nb5 {[%clk 00:00:48]} {[%emt 00:00:08]} Be5 {[%clk 00:00:22]} {[%emt
00:00:05]} 36. Nd4 {[%clk 00:00:45]} {[%emt 00:00:07]} Be4 {[%clk 00:00:23]}
{[%emt 00:00:04]} 37. Nc6 {[%clk 00:00:43]} {[%emt 00:00:08]} Bxd5 {[%clk
00:00:17]} {[%emt 00:00:11]} 38. Nxe5 {[%clk 00:00:46]} {[%emt 00:00:02]} Bxc4
{[%clk 00:00:16]} {[%emt 00:00:06]} 39. Nxc4 {[%clk 00:00:50]} {[%emt
00:00:01]} R8e2 {[%clk 00:00:18]} {[%emt 00:00:03]} 40. Rxe2 {[%clk 00:00:49]}
{[%emt 00:00:06]} Rxe2 {[%clk 00:00:22]} {[%emt 00:00:01]} 41. c3 {[%clk
00:00:51]} {[%emt 00:00:02]} d5 {[%clk 00:00:24]} {[%emt 00:00:04]} 42. Nxa5
{[%clk 00:00:54]} {[%emt 00:00:02]} Rxb2 {[%clk 00:00:28]} 43. Nc6 {[%clk
00:00:55]} {[%emt 00:00:04]} Rc2 {[%clk 00:00:20]} {[%emt 00:00:13]} 44. Ne7+
{[%clk 00:00:57]} {[%emt 00:00:03]} Kf7 {[%clk 00:00:24]} 45. Nxd5 {[%clk
00:01:01]} {[%emt 00:00:01]} Ke6 {[%clk 00:00:28]} 46. Nb6 {[%clk 00:00:56]}
{[%emt 00:00:11]} Ra2 {[%clk 00:00:27]} {[%emt 00:00:06]} 47. Kg1 {[%clk
00:00:54]} {[%emt 00:00:07]} Kd6 {[%clk 00:00:29]} {[%emt 00:00:04]} 48. Nh2
{[%clk 00:00:52]} {[%emt 00:00:07]} Kc5 {[%clk 00:00:33]} {[%emt 00:00:02]} 49.
Nd7+ {[%clk 00:00:54]} {[%emt 00:00:02]} Kc4 {[%clk 00:00:34]} {[%emt
00:00:04]} 50. Ng4 {[%clk 00:00:53]} {[%emt 00:00:06]} Kxc3 {[%clk 00:00:25]}
{[%emt 00:00:14]} 51. Nxh6 {[%clk 00:00:55]} {[%emt 00:00:03]} Rxa4 {[%clk
00:00:24]} {[%emt 00:00:07]} 52. Kf2 {[%clk 00:00:48]} {[%emt 00:00:12]} Kd4
{[%clk 00:00:13]} {[%emt 00:00:16]} 53. Nf5+ {[%clk 00:00:51]} {[%emt
00:00:02]} Kc3 {[%clk 00:00:15]} {[%emt 00:00:04]} 54. Kf3 {[%clk 00:00:51]}
{[%emt 00:00:04]} Ra2 {[%clk 00:00:17]} {[%emt 00:00:03]} 55. Ne5 {[%clk
00:00:50]} {[%emt 00:00:05]} Kb4 {[%clk 00:00:18]} {[%emt 00:00:04]} 56. Nf7
{[%clk 00:00:49]} {[%emt 00:00:05]} Ra3+ {[%clk 00:00:20]} {[%emt 00:00:04]} 57.
Kg4 {[%clk 00:00:51]} {[%emt 00:00:03]} Kc4 {[%clk 00:00:21]} {[%emt 00:00:04]}
58. Nxg5 {[%clk 00:00:51]} {[%emt 00:00:05]} Kd5 {[%clk 00:00:18]} {[%emt
00:00:08]} 59. Kxf4 {[%clk 00:00:52]} {[%emt 00:00:04]} Ra4+ {[%clk 00:00:22]}
{[%emt 00:00:02]} 60. Kf3 {[%clk 00:00:53]} {[%emt 00:00:03]} Ke5 {[%clk
00:00:26]} {[%emt 00:00:01]} 61. Ne3 {[%clk 00:00:56]} {[%emt 00:00:01]} Rb4
{[%clk 00:00:26]} {[%emt 00:00:06]} 62. g4 {[%clk 00:00:57]} {[%emt 00:00:04]}
Rf4+ {[%clk 00:00:28]} {[%emt 00:00:02]} 63. Kg3 {[%clk 00:01:01]} {[%emt
00:00:02]} Ra4 {[%clk 00:00:31]} {[%emt 00:00:03]} 64. Nf3+ {[%clk 00:01:04]}
{[%emt 00:00:01]} Kf6 {[%clk 00:00:35]} {[%emt 00:00:01]} 65. h4 {[%clk
00:01:06]} {[%emt 00:00:02]} Ra3 {[%clk 00:00:37]} {[%emt 00:00:03]} 66. Nd5+
{[%clk 00:01:10]} Ke6 {[%clk 00:00:41]} {[%emt 00:00:02]} 67. Nf4+ {[%clk
00:01:13]} Kf6 {[%clk 00:00:45]} {[%emt 00:00:01]} 68. h5 {[%clk 00:01:14]}
{[%emt 00:00:04]} Ra5 {[%clk 00:00:46]} {[%emt 00:00:05]} 69. Nh3 {[%clk
00:01:01]} {[%emt 00:00:17]} Ra3 {[%clk 00:00:43]} {[%emt 00:00:08]} 70. Nf2
{[%clk 00:01:00]} {[%emt 00:00:06]} Ra4 {[%clk 00:00:45]} {[%emt 00:00:05]} 71.
Nd3 {[%clk 00:00:57]} {[%emt 00:00:07]} Rd4 {[%clk 00:00:44]} {[%emt 00:00:06]}
72. Nxd4 {[%clk 00:00:59]} {[%emt 00:00:03]} 1-0

[Event "Championnat de France Universitaire 2022"]
[Site "Limoges, France"]
[Date "2022.02.05"]
[Round "3.1"]
[White "Rakotomaharo, Fy Antenaina"]
[Black "Bosc, Gabriel"]
[Result "1-0"]
[TimeControl "15'+5''"]
[WhiteElo "2474"]
[BlackElo "2050"]

1. e4 {[%clk 00:15:07]} {[%emt 00:00:02]} c5 {[%clk 00:15:09]} {[%emt
00:00:03]} 2. Nf3 {[%clk 00:15:10]} Nc6 {[%clk 00:15:12]} {[%emt 00:00:02]} 3.
d4 {[%clk 00:15:04]} {[%emt 00:00:11]} cxd4 {[%clk 00:15:14]} {[%emt 00:00:03]}
4. Nxd4 {[%clk 00:15:07]} {[%emt 00:00:02]} Nf6 {[%clk 00:15:16]} {[%emt
00:00:03]} 5. Nc3 {[%clk 00:15:11]} {[%emt 00:00:02]} e5 {[%clk 00:15:19]}
{[%emt 00:00:04]} 6. Ndb5 {[%clk 00:15:14]} d6 {[%clk 00:15:20]} {[%emt
00:00:04]} 7. Nd5 {[%clk 00:15:17]} {[%emt 00:00:02]} Nxd5 {[%clk 00:15:18]}
{[%emt 00:00:08]} 8. exd5 {[%clk 00:15:19]} {[%emt 00:00:02]} Nb8 {[%clk
00:15:01]} {[%emt 00:00:23]} 9. Qf3 {[%clk 00:15:20]} {[%emt 00:00:04]} Be7
{[%clk 00:14:37]} {[%emt 00:00:29]} 10. Qc3 {[%clk 00:15:09]} {[%emt 00:00:15]}
Na6 {[%clk 00:14:20]} {[%emt 00:00:22]} 11. Be3 {[%clk 00:15:12]} {[%emt
00:00:02]} f5 {[%clk 00:11:38]} {[%emt 00:02:48]} 12. f3 {[%clk 00:13:28]}
{[%emt 00:01:48]} O-O {[%clk 00:10:31]} {[%emt 00:01:11]} 13. Nxa7 {[%clk
00:13:17]} {[%emt 00:00:16]} Bf6 {[%clk 00:07:21]} {[%emt 00:03:16]} 14. Bxa6
{[%clk 00:10:29]} {[%emt 00:02:52]} bxa6 {[%clk 00:07:23]} {[%emt 00:00:04]} 15.
Nc6 {[%clk 00:10:31]} {[%emt 00:00:02]} Qd7 {[%clk 00:06:24]} {[%emt 00:01:05]}
16. O-O {[%clk 00:09:20]} {[%emt 00:01:15]} Bb7 {[%clk 00:05:14]} {[%emt
00:01:16]} 17. Qb3 {[%clk 00:06:48]} {[%emt 00:02:36]} Rfc8 {[%clk 00:04:43]}
{[%emt 00:00:37]} 18. Na5 {[%clk 00:06:15]} {[%emt 00:00:38]} Rcb8 {[%clk
00:04:31]} {[%emt 00:00:17]} 19. Rad1 {[%clk 00:05:20]} {[%emt 00:00:59]} Kh8
{[%clk 00:03:44]} {[%emt 00:00:53]} 20. Qa3 {[%clk 00:05:08]} {[%emt 00:00:17]}
Be7 {[%clk 00:02:53]} {[%emt 00:00:57]} 21. c4 {[%clk 00:05:01]} {[%emt
00:00:12]} Rc8 {[%clk 00:02:29]} {[%emt 00:00:29]} 22. Rd2 {[%clk 00:02:56]}
{[%emt 00:02:09]} Rab8 {[%clk 00:01:08]} {[%emt 00:01:27]} 23. Rfd1 {[%clk
00:02:33]} {[%emt 00:00:28]} Ba8 {[%clk 00:01:05]} {[%emt 00:00:09]} 24. b4
{[%clk 00:02:35]} {[%emt 00:00:02]} Bd8 {[%clk 00:00:14]} {[%emt 00:00:56]} 25.
c5 {[%clk 00:02:38]} {[%emt 00:00:02]} Qb5 {[%clk 00:00:09]} {[%emt 00:00:10]}
26. c6 {[%clk 00:00:52]} {[%emt 00:01:51]} Qxb4 {[%clk 00:00:13]} {[%emt
00:00:02]} 27. Qxb4 {[%clk 00:00:55]} {[%emt 00:00:01]} Rxb4 {[%clk 00:00:17]}
{[%emt 00:00:01]} 28. Nb3 {[%clk 00:00:59]} a5 {[%clk 00:00:10]} {[%emt
00:00:12]} 29. Rc2 {[%clk 00:01:02]} a4 {[%clk 00:00:12]} {[%emt 00:00:04]} 30.
Nd2 {[%clk 00:01:06]} {[%emt 00:00:01]} Bb7 {[%clk 00:00:06]} {[%emt 00:00:12]}
31. Nc4 {[%clk 00:01:05]} {[%emt 00:00:04]} Ba6 {[%clk 00:00:07]} {[%emt
00:00:06]} 32. Nxd6 {[%clk 00:01:07]} {[%emt 00:00:03]} f4 {[%clk 00:00:07]}
{[%emt 00:00:05]} 33. Bc5 {[%clk 00:01:07]} {[%emt 00:00:05]} Rcb8 {[%clk
00:00:06]} {[%emt 00:00:06]} 34. Bxb4 {[%clk 00:01:09]} {[%emt 00:00:03]} Rxb4
{[%clk 00:00:10]} {[%emt 00:00:02]} 35. c7 {[%clk 00:01:11]} {[%emt 00:00:02]}
1-0

[Event "Championnat de France Universitaire 2022"]
[Site "Limoges, France"]
[Date "2022.02.05"]
[Round "3.2"]
[White "Lux, Hugo De Melo"]
[Black "Valles, Manuel"]
[Result "0-1"]
[TimeControl "15'+5''"]
[WhiteElo "2326"]
[BlackElo "2362"]

1. e4 {[%clk 00:15:07]} {[%emt 00:00:02]} c5 {[%clk 00:15:03]} {[%emt
00:00:07]} 2. Nf3 {[%clk 00:15:11]} {[%emt 00:00:03]} e6 {[%clk 00:15:08]} 3.
b3 {[%clk 00:15:14]} {[%emt 00:00:02]} Nc6 {[%clk 00:15:00]} {[%emt 00:00:12]}
4. Bb2 {[%clk 00:15:17]} {[%emt 00:00:02]} d6 {[%clk 00:12:50]} {[%emt
00:02:16]} 5. g3 {[%clk 00:15:09]} {[%emt 00:00:13]} e5 {[%clk 00:12:05]}
{[%emt 00:00:50]} 6. c3 {[%clk 00:15:12]} {[%emt 00:00:02]} Nf6 {[%clk
00:11:50]} {[%emt 00:00:19]} 7. Qe2 {[%clk 00:15:16]} {[%emt 00:00:02]} Be7
{[%clk 00:11:08]} {[%emt 00:00:47]} 8. Bg2 {[%clk 00:15:15]} {[%emt 00:00:05]}
O-O {[%clk 00:11:12]} {[%emt 00:00:02]} 9. d4 {[%clk 00:13:25]} {[%emt
00:01:55]} exd4 {[%clk 00:08:45]} {[%emt 00:02:32]} 10. cxd4 {[%clk 00:13:28]}
{[%emt 00:00:02]} Bg4 {[%clk 00:08:49]} {[%emt 00:00:01]} 11. d5 {[%clk
00:11:15]} {[%emt 00:02:17]} Nd4 {[%clk 00:08:22]} {[%emt 00:00:32]} 12. Qd3
{[%clk 00:06:26]} {[%emt 00:04:54]} Bxf3 {[%clk 00:05:56]} {[%emt 00:02:31]} 13.
Bxf3 {[%clk 00:06:30]} {[%emt 00:00:01]} Nd7 {[%clk 00:06:01]} {[%emt
00:00:01]} 14. Bg2 {[%clk 00:06:08]} {[%emt 00:00:27]} Ne5 {[%clk 00:05:57]}
{[%emt 00:00:09]} 15. Qd1 {[%clk 00:06:12]} Qa5+ {[%clk 00:04:58]} {[%emt
00:01:05]} 16. Bc3 {[%clk 00:02:25]} {[%emt 00:03:51]} Qa6 {[%clk 00:04:56]}
{[%emt 00:00:06]} 17. Rf1 {[%clk 00:01:24]} {[%emt 00:01:07]} Bf6 {[%clk
00:03:35]} {[%emt 00:01:26]} 18. f4 {[%clk 00:01:27]} {[%emt 00:00:02]} Nd3+
{[%clk 00:03:37]} {[%emt 00:00:03]} 19. Kd2 {[%clk 00:01:31]} Nb4 {[%clk
00:02:35]} {[%emt 00:01:06]} 20. a3 {[%clk 00:01:20]} {[%emt 00:00:18]} Qd3+
{[%clk 00:02:21]} {[%emt 00:00:18]} 21. Ke1 {[%clk 00:00:14]} {[%emt 00:01:11]}
Nbc2+ {[%clk 00:02:19]} {[%emt 00:00:06]} 22. Kf2 {[%clk 00:00:18]} {[%emt
00:00:02]} Qe3# {[%emt 00:00:08]} 0-1

[Event "Championnat de France Universitaire 2022"]
[Site "Limoges, France"]
[Date "2022.02.05"]
[Round "3.4"]
[White "Chiche, Thibaut"]
[Black "Gatineau, Yovann"]
[Result "0-1"]
[TimeControl "15'+5''"]
[WhiteElo "1955"]
[BlackElo "2384"]

1. Nf3 {[%clk 00:15:09]} d5 {[%clk 00:15:09]} {[%emt 00:00:02]} 2. g3 {[%clk
00:15:13]} {[%emt 00:00:01]} Nf6 {[%clk 00:15:07]} {[%emt 00:00:06]} 3. Bg2
{[%emt 00:00:02]} g6 {[%emt 00:00:02]} 4. b3 {[%clk 00:15:21]} Bg7 {[%clk
00:15:12]} {[%emt 00:00:04]} 5. Bb2 {[%clk 00:15:25]} {[%emt 00:00:02]} O-O
{[%clk 00:15:14]} {[%emt 00:00:01]} 6. c4 {[%clk 00:15:17]} {[%emt 00:00:13]}
c6 {[%clk 00:14:55]} {[%emt 00:00:24]} 7. O-O {[%clk 00:15:17]} {[%emt
00:00:04]} a5 {[%clk 00:14:48]} {[%emt 00:00:12]} 8. Qc2 {[%clk 00:14:18]}
{[%emt 00:01:04]} Na6 {[%clk 00:13:50]} {[%emt 00:01:02]} 9. a3 {[%clk
00:13:36]} {[%emt 00:00:47]} Re8 {[%clk 00:12:38]} {[%emt 00:01:17]} 10. d3
{[%clk 00:12:51]} {[%emt 00:00:50]} Bf5 {[%clk 00:11:20]} {[%emt 00:01:22]} 11.
Nbd2 {[%clk 00:12:26]} {[%emt 00:00:31]} Qd7 {[%clk 00:10:14]} {[%emt
00:01:11]} 12. Rfe1 {[%clk 00:09:14]} {[%emt 00:03:17]} Bh3 {[%clk 00:09:42]}
{[%emt 00:00:37]} 13. e4 {[%clk 00:08:45]} {[%emt 00:00:35]} Bxg2 {[%clk
00:09:31]} {[%emt 00:00:15]} 14. Kxg2 {[%clk 00:08:48]} {[%emt 00:00:02]} dxe4
{[%clk 00:07:41]} {[%emt 00:01:56]} 15. Nxe4 {[%clk 00:06:41]} {[%emt
00:02:12]} Nxe4 {[%clk 00:06:11]} {[%emt 00:01:34]} 16. dxe4 {[%clk 00:05:46]}
{[%emt 00:01:01]} Bxb2 {[%clk 00:05:24]} {[%emt 00:00:52]} 17. Rad1 {[%clk
00:05:49]} {[%emt 00:00:02]} Qe6 {[%clk 00:04:41]} {[%emt 00:00:49]} 18. Qxb2
{[%clk 00:05:52]} {[%emt 00:00:03]} Rad8 {[%clk 00:04:44]} {[%emt 00:00:01]} 19.
Rd4 {[%clk 00:03:43]} {[%emt 00:02:14]} Nc5 {[%clk 00:03:54]} {[%emt 00:00:54]}
20. b4 {[%clk 00:03:18]} {[%emt 00:00:31]} axb4 {[%clk 00:03:28]} {[%emt
00:00:31]} 21. Qxb4 {[%clk 00:01:21]} {[%emt 00:02:01]} Nd3 {[%clk 00:03:17]}
{[%emt 00:00:17]} 22. Rxd8 {[%clk 00:00:42]} {[%emt 00:00:44]} Rxd8 {[%clk
00:02:36]} {[%emt 00:00:45]} 23. Qb6 {[%clk 00:00:19]} {[%emt 00:00:29]} Nxe1+
{[%clk 00:02:38]} {[%emt 00:00:03]} 0-1

[ePGN "0.1;DGT LiveChess/2.2.5"]

[Event "Championnat de France Universitaire 2022"]
[Site "Limoges, France"]
[Date "2022.02.05"]
[Round "4.2"]
[White "Valles, Manuel"]
[Black "Derige Kane, Yan"]
[Result "0-1"]
[TimeControl "15'+5''"]
[WhiteElo "2362"]
[BlackElo "2148"]

1. d4 {[%clk 00:15:09]} {[%emt 00:00:01]} d5 {[%clk 00:15:10]} {[%emt
00:00:01]} 2. c4 {[%clk 00:15:12]} {[%emt 00:00:03]} e6 {[%clk 00:15:14]} 3.
Nf3 {[%clk 00:15:14]} {[%emt 00:00:03]} a6 {[%clk 00:15:18]} {[%emt 00:00:03]}
4. e3 {[%clk 00:14:07]} {[%emt 00:01:10]} Nf6 {[%clk 00:14:51]} {[%emt
00:00:32]} 5. Nc3 {[%clk 00:13:28]} {[%emt 00:00:43]} dxc4 {[%clk 00:14:54]}
{[%emt 00:00:02]} 6. Bxc4 {[%clk 00:13:32]} {[%emt 00:00:01]} b5 {[%clk
00:14:59]} 7. Bb3 {[%clk 00:10:16]} {[%emt 00:03:21]} Bb7 {[%clk 00:14:45]}
{[%emt 00:00:18]} 8. O-O {[%clk 00:10:10]} {[%emt 00:00:11]} Nbd7 {[%clk
00:11:47]} {[%emt 00:03:03]} 9. Re1 {[%clk 00:07:10]} {[%emt 00:03:05]} c5
{[%clk 00:07:53]} {[%emt 00:04:00]} 10. e4 {[%clk 00:07:14]} b4 {[%clk
00:03:34]} {[%emt 00:04:25]} 11. e5 {[%clk 00:07:13]} {[%emt 00:00:06]} bxc3
{[%clk 00:03:17]} {[%emt 00:00:21]} 12. exf6 {[%clk 00:07:16]} {[%emt
00:00:02]} Nxf6 {[%clk 00:03:21]} {[%emt 00:00:01]} 13. bxc3 {[%clk 00:07:06]}
{[%emt 00:00:15]} Be7 {[%clk 00:03:00]} {[%emt 00:00:26]} 14. Ba4+ {[%clk
00:07:02]} {[%emt 00:00:08]} Kf8 {[%clk 00:03:04]} {[%emt 00:00:01]} 15. c4
{[%clk 00:02:02]} {[%emt 00:05:05]} Qc7 {[%clk 00:02:07]} {[%emt 00:01:02]} 16.
Qe2 {[%clk 00:00:52]} {[%emt 00:01:16]} Rd8 {[%clk 00:01:39]} {[%emt 00:00:32]}
17. d5 {[%clk 00:00:47]} {[%emt 00:00:10]} exd5 {[%clk 00:00:43]} {[%emt
00:01:02]} 18. Bf4 {[%clk 00:00:52]} Bd6 {[%clk 00:00:46]} {[%emt 00:00:01]} 19.
Rab1 {[%clk 00:00:56]} Bxf4 {[%clk 00:00:18]} {[%emt 00:00:33]} 20. Rxb7 {[%clk
00:00:57]} {[%emt 00:00:03]} Qxb7 {[%clk 00:00:21]} {[%emt 00:00:03]} 21. Qe8+
{[%clk 00:00:59]} {[%emt 00:00:03]} Nxe8 {[%clk 00:00:24]} {[%emt 00:00:03]} 22.
Bb3 {[%emt 00:00:39]} 0-1